bitfinex/quotes_SOLUSD_20241126
["timestamp","ask_amount","ask_price","bid_price","bid_amount"]
[1732584823627,26.299384,237.86,237.78,12.74151267]
[1732584823928,26.299384,237.86,237.72,12.74151267]
[1732584823929,23.776884,237.86,237.8,12.74151267]
[1732584824236,23.776884,237.86,237.82,12.74151267]
[1732584824639,23.776884,237.86,237.8,12.74151267]
[1732584824830,15.2587,237.87,237.82,12.74151267]
[1732584825752,15.2587,237.87,237.81,12.74151267]
[1732584826523,15.2587,237.87,237.83,12.74151267]
[1732584827844,0.4056752,237.9,237.86,12.74151267]
[1732584828043,0.4056752,237.9,237.88,12.74151267]
[1732584828954,0.4056752,237.9,237.79,26.0917]
[1732584828955,0.4056752,237.9,237.86,12.74151267]
[1732584830928,0.4056752,237.9,237.79,16.0917]
[1732584830929,0.4056752,237.9,237.84,12.74151267]
[1732584831246,13.14718787,237.9,237.82,12.74151267]
[1732584831644,13.14718787,237.9,237.8,12.74151267]
[1732584831851,12.74151267,237.88,237.8,12.74151267]
[1732584832450,0.4056752,237.9,237.83,12.74151267]
[1732584832633,13.14718787,237.9,237.83,12.74151267]
[1732584834460,0.4056752,237.9,237.83,12.74151267]
[1732584834832,0.4056752,237.9,237.85,12.74151267]
[1732584835949,0.4056752,237.9,237.83,12.74151267]
[1732584836143,0.4056752,237.9,237.89,12.74151267]
[1732584838856,0.4056752,237.9,237.87,12.74151267]
[1732584839246,0.4056752,237.9,237.89,12.74151267]
[1732584842857,0.4056752,237.9,237.89,17.07060267]
[1732584843163,0.4056752,237.9,237.89,12.74151267]
[1732584843455,0.4056752,237.9,237.89,16.94511267]
[1732584844947,0.4056752,237.9,237.89,12.74151267]
[1732584847448,0.4056752,237.9,237.89,16.94511267]
[1732584848673,0.4056752,237.9,237.89,12.74151267]
[1732584849040,0.4056752,237.9,237.89,16.94511267]
[1732584853755,0.4056752,237.9,237.89,12.74151267]
[1732584854143,0.4056752,237.9,237.89,16.94511267]
[1732584857568,0.4056752,237.9,237.89,17.70089493]
[1732584860578,0.4056752,237.9,237.89,24.95938226]
[1732584860878,0.4056752,237.9,237.89,37.70089493]
[1732584862568,0.4056752,237.9,237.89,37.07060267]
[1732584862770,0.4056752,237.9,237.89,24.2036]
[1732584862972,0.4056752,237.9,237.89,12.74151267]
[1732584864458,0.4056752,237.9,237.89,16.94511267]
[1732584865174,0.4056752,237.9,237.89,17.70086885]
[1732584865499,7.39727891,238.06,237.95,20.0]
[1732584865778,7.39727891,238.06,238.03,12.74151267]
[1732584867364,7.39727891,238.06,238.05,12.74151267]
[1732584869661,15.6706,238.1,238.05,12.74151267]
[1732584869984,15.6706,238.1,238.08,12.74151267]
[1732584870469,15.6706,238.1,238.06,12.74151267]
[1732584870678,15.6706,238.1,237.92,4.2029]
[1732584870679,37.23181267,238.1,237.92,4.2029]
[1732584870978,12.74151267,238.07,237.99,12.74151267]
[1732584871680,23.776884,238.06,237.99,12.74151267]
[1732584872158,23.776884,238.04,237.99,12.74151267]
[1732584872578,2.5204,238.05,237.99,12.74151267]
[1732584873659,2.5204,238.05,237.98,12.74151267]
[1732584874583,2.5204,238.05,237.99,12.74151267]
[1732584875181,2.5204,238.05,238.0,12.74151267]
[1732584875372,2.5204,238.05,237.99,12.74151267]
[1732584875571,2.5204,238.05,237.98,12.74151267]
[1732584876369,12.74151267,238.09,238.01,12.74151267]
[1732584876681,15.6706,238.1,237.91,20.0]
[1732584876682,15.6706,238.1,238.05,12.74151267]
[1732584877068,15.6706,238.1,238.06,12.74151267]
[1732584877388,15.6706,238.1,238.04,12.74151267]
[1732584877685,15.6706,238.1,238.06,12.74151267]
[1732584878065,0.4924752,238.14,238.07,12.74151267]
[1732584878270,24.2693592,238.14,238.07,12.74151267]
[1732584878675,24.2693592,238.14,238.08,12.74151267]
[1732584878873,0.4924752,238.14,238.08,12.74151267]
[1732584879794,0.4924752,238.14,238.07,12.74151267]
[1732584883390,0.4924752,238.14,238.09,12.74151267]
[1732584885565,0.4924752,238.14,238.07,4.2003]
[1732584885566,33.23398787,238.14,237.97,1.5848499]
[1732584885771,12.74151267,238.11,238.03,12.74151267]
[1732584887194,12.74151267,238.09,238.01,12.74151267]
[1732584887576,2.5201,238.08,238.01,12.74151267]
[1732584887892,2.5201,238.08,237.99,12.74151267]
[1732584888193,16.4457,238.07,237.99,12.74151267]
[1732584889298,31.70741267,238.07,237.99,12.74151267]
[1732584889999,23.776884,238.08,238.01,12.74151267]
[1732584891676,26.296984,238.08,238.01,12.74151267]
[1732584892072,36.51839667,238.09,238.01,12.74151267]
[1732584892480,23.776884,238.09,238.03,12.74151267]
[1732584894498,96.02269934,238.12,238.05,12.74151267]
[1732584894674,29.18721267,238.13,238.05,12.74151267]
[1732584894870,16.4457,238.13,238.07,12.74151267]
[1732584895800,16.4457,238.13,238.06,12.74151267]
[1732584896594,16.4457,238.13,238.02,4.2011]
[1732584896787,23.776884,238.12,238.0,24.2015]
[1732584897099,23.776884,238.1,238.03,12.74151267]
[1732584898300,23.776884,238.11,238.03,8.14030447]
[1732584898479,23.776884,238.11,237.94,10.5068]
[1732584898683,23.776884,238.11,238.03,8.14030447]
[1732584899478,26.296684,238.11,238.03,8.14030447]
[1732584900086,26.296684,238.11,238.05,8.14030447]
[1732584900413,16.4457,238.13,238.05,8.14030447]
[1732584900773,18.9653,238.13,238.05,8.14030447]
[1732584901009,16.4457,238.13,238.05,8.14030447]
[1732584902402,16.4457,238.13,238.09,8.14030447]
[1732584902581,16.4457,238.13,238.03,4.201]
[1732584902898,16.4457,238.13,238.07,8.14030447]
[1732584903777,0.4924752,238.14,238.09,8.14030447]
[1732584908291,0.4924752,238.14,238.01,20.0]
[1732584908292,0.4924752,238.14,238.11,8.14030447]
[1732584908484,0.4924752,238.14,238.13,8.14030447]
[1732584911507,0.4924752,238.14,238.07,4.2002]
[1732584911508,0.4924752,238.14,238.09,8.14030447]
[1732584912916,8.14030447,238.13,238.05,8.14030447]
[1732584913116,8.14030447,238.13,237.96,43.06681788]
[1732584913117,8.14030447,238.11,238.03,8.14030447]
[1732584913706,10.65990447,238.13,238.05,8.14030447]
[1732584914006,23.776884,238.12,238.05,8.14030447]
[1732584914305,0.4924752,238.14,238.07,8.14030447]
[1732584914510,2.5196,238.13,238.07,8.14030447]
[1732584915309,10.65990447,238.13,238.05,8.14030447]
[1732584915891,0.4924752,238.14,238.0,20.0]
[1732584916090,0.4924752,238.14,238.09,8.14030447]
[1732584917196,0.4924752,238.14,238.11,8.14030447]
[1732584918002,0.4924752,238.14,238.13,8.14030447]
[1732584919397,0.4924752,238.14,238.09,24.29527177]
[1732584919595,0.4924752,238.14,238.13,8.14030447]
[1732584920716,0.4924752,238.14,238.09,24.29527177]
[1732584920897,0.4924752,238.14,238.1,8.14030447]
[1732584922713,0.4924752,238.14,238.12,8.14030447]
[1732584922898,0.4924752,238.14,238.08,4.2002]
[1732584923216,0.4924752,238.14,238.11,8.14030447]
[1732584924318,10.0,238.11,237.92,4.27701437]
[1732584924493,31.01330447,238.13,237.86,75.71301939]
[1732584924494,20.0,238.06,237.99,8.14030447]
[1732584924814,31.6916,238.13,237.91,4.2031]
[1732584924815,25.3926,238.13,238.05,8.14030447]
[1732584924996,25.3926,238.13,238.07,8.14030447]
[1732584925611,20.0,238.1,238.04,8.14030447]
[1732584925805,20.0,238.09,238.04,8.14030447]
[1732584926323,20.0,238.09,238.03,12.71927225]
[1732584926998,22.5201,238.09,238.03,12.71927225]
[1732584927194,12.71927225,238.08,237.94,20.0]
[1732584927414,12.71927225,238.08,238.0,12.71927225]
[1732584927626,22.5201,238.09,238.0,12.71927225]
[1732584927808,22.5201,238.09,238.02,12.71927225]
[1732584928515,93.50299934,238.12,238.04,12.71927225]
[1732584928721,96.02269934,238.12,238.06,12.71927225]
[1732584928909,2.5197,238.12,238.06,12.71927225]
[1732584929112,15.23897225,238.12,237.99,24.2018]
[1732584929402,15.23897225,238.12,238.03,12.71927225]
[1732584930923,2.5197,238.12,238.05,12.71927225]
[1732584931524,0.4924752,238.14,238.09,12.71927225]
[1732584933004,0.4924752,238.14,238.11,12.71927225]
[1732584933425,0.4924752,238.14,238.13,12.71927225]
[1732584935730,0.4924752,238.14,238.05,10.5015]
[1732584935731,0.4924752,238.14,238.11,12.71927225]
[1732584938025,0.4924752,238.14,238.09,12.71927225]
[1732584943406,0.4924752,238.14,238.05,24.2006]
[1732584943605,0.4924752,238.14,238.09,12.71927225]
[1732584944022,3.0119752,238.14,238.05,12.71927225]
[1732584944223,18.1730752,238.14,238.05,12.71927225]
[1732584944409,12.71927225,238.13,238.05,12.71927225]
[1732584945711,12.71927225,238.13,238.0,4.2015]
[1732584945919,12.71927225,238.13,238.04,12.71927225]
[1732584946305,12.71927225,238.13,238.06,12.71927225]
[1732584946527,15.23887225,238.13,238.06,12.71927225]
[1732584946934,2.5196,238.13,238.08,12.71927225]
[1732584947734,15.6535752,238.14,238.08,12.71927225]
[1732584947926,18.1730752,238.14,238.08,12.71927225]
[1732584948334,23.776884,238.13,238.06,12.71927225]
[1732584949527,2.5197,238.12,238.06,12.71927225]
[1732584949830,2.5197,238.12,238.05,12.71927225]
[1732584951739,12.71927225,238.08,238.0,12.71927225]
[1732584951910,12.71927225,238.06,237.98,12.71927225]
[1732584953008,11.53457498,238.11,238.02,12.71927225]
[1732584953009,20.0,238.09,238.02,12.71927225]
[1732584953217,23.776884,238.13,238.08,12.71927225]
[1732584953538,20.0,238.11,238.04,12.71927225]
[1732584953710,0.4924752,238.14,238.1,12.71927225]
[1732584953916,0.4924752,238.14,238.12,12.71927225]
[1732584955112,0.4924752,238.14,238.12,16.91877225]
[1732584959036,0.4924752,238.14,238.1,12.71927225]
[1732584959536,3.0119752,238.14,238.1,12.71927225]
[1732584959947,3.0119752,238.14,238.08,12.71927225]
[1732584961653,23.776884,238.13,238.08,12.71927225]
[1732584961825,3.0119752,238.14,238.08,12.71927225]
[1732584962536,23.0119752,238.14,238.08,12.71927225]
[1732584962746,20.0,238.12,238.08,12.71927225]
[1732584962928,20.0,238.12,238.06,12.71927225]
[1732584963133,56.49615625,238.11,238.04,12.71927225]
[1732584963530,56.49615625,238.11,238.02,12.71927225]
[1732584963731,23.776884,238.09,238.02,12.71927225]
[1732584964230,2.5199,238.1,238.04,12.71927225]
[1732584964633,23.776884,238.09,238.04,12.71927225]
[1732584964942,2.5199,238.1,238.04,12.71927225]
[1732584965328,2.5199,238.1,238.06,12.71927225]
[1732584965524,2.5198,238.12,238.06,12.71927225]
[1732584966839,18.1731752,238.14,238.1,12.71927225]
[1732584967237,0.4924752,238.14,238.12,12.71927225]
[1732584968547,0.4924752,238.14,238.12,16.91877225]
[1732584968722,0.4924752,238.14,238.1,4.1997]
[1732584968922,0.4924752,238.14,238.13,12.71927225]
[1732584971740,0.4924752,238.14,238.11,12.71927225]
[1732584972843,3.0119752,238.14,238.09,12.71927225]
[1732584973023,3.0119752,238.14,238.11,12.71927225]
[1732584973637,0.4924752,238.14,238.13,12.71927225]
[1732584975959,0.4924752,238.14,238.11,12.71927225]
[1732584976452,3.0119752,238.14,238.11,12.71927225]
[1732584976829,3.0119752,238.14,238.09,12.71927225]
[1732584977032,3.0119752,238.14,238.03,6.0902]
[1732584977033,23.776884,238.13,238.07,12.71927225]
[1732584977335,3.0119752,238.14,238.02,16.1283]
[1732584977336,0.4924752,238.14,238.11,12.71927225]
[1732584978334,0.4924752,238.14,238.13,12.71927225]
[1732584981345,0.4924752,238.14,238.02,26.6316]
[1732584981346,3.0119752,238.14,238.11,12.71927225]
[1732584981549,3.0119752,238.14,238.12,12.71927225]
[1732584983361,0.4924752,238.14,238.13,12.71927225]
[1732584985763,0.4924752,238.14,238.13,16.91857225]
[1732584986148,0.4924752,238.14,238.13,12.71927225]
[1732584986442,0.4924752,238.14,238.08,6.355]
[1732584986649,0.4924752,238.14,238.13,12.71927225]
[1732584989468,0.4924752,238.14,238.06,4.2004]
[1732584989657,0.4924752,238.14,238.12,12.71927225]
[1732584990567,0.4924752,238.14,238.13,12.71927225]
[1732584995555,3.0119752,238.14,238.09,12.71927225]
[1732584996155,3.0119752,238.14,238.1,12.71927225]
[1732584996357,23.776884,238.13,238.02,22.4833]
[1732584996665,23.776884,238.13,238.08,12.71927225]
[1732584997064,20.0,238.11,238.08,12.71927225]
[1732584997272,20.0,238.11,238.09,12.71927225]
[1732584999271,2.5199,238.1,238.07,12.71927225]
[1732584999976,2.5199,238.1,238.09,12.71927225]
[1732585000349,2.5198,238.12,238.09,12.71927225]
[1732585000665,2.5198,238.12,238.11,12.71927225]
[1732585001670,2.5198,238.12,238.09,12.71927225]
[1732585002250,2.5198,238.12,238.11,12.71927225]
[1732585002471,0.4924752,238.14,238.11,12.71927225]
[1732585004070,3.0119752,238.14,238.11,12.71927225]
[1732585004775,3.0119752,238.14,238.13,12.71927225]
[1732585006981,3.0119752,238.14,238.09,12.71927225]
[1732585007152,3.0119752,238.14,238.11,12.71927225]
[1732585009271,3.0119752,238.14,238.13,12.71927225]
[1732585009664,3.0119752,238.14,238.11,12.71927225]
[1732585012081,3.0119752,238.14,238.13,12.71927225]
[1732585012269,3.0119752,238.14,238.13,8.1339252]
[1732585013952,3.0119752,238.14,238.11,8.1339252]
[1732585014281,3.0119752,238.14,238.07,8.1339252]
[1732585014282,23.776884,238.13,238.07,8.1339252]
[1732585014453,9.3107752,238.14,238.09,8.1339252]
[1732585014658,3.0119752,238.14,238.09,8.1339252]
[1732585014871,3.0119752,238.14,238.11,8.1339252]
[1732585016266,20.0,238.13,238.09,8.1339252]
[1732585017261,2.5197,238.12,238.09,8.1339252]
[1732585017466,2.5197,238.12,238.11,8.1339252]
[1732585017677,0.4924752,238.14,238.11,8.1339252]
[1732585017856,0.4924752,238.14,238.13,8.1339252]
[1732585020369,0.4924752,238.14,238.13,12.70149449]
[1732585021887,2.5183,238.26,238.14,4.1992]
[1732585022073,2.5183,238.26,238.24,12.70149449]
[1732585022268,2.518,238.29,238.24,12.70149449]
[1732585022474,2.5177,238.31,238.27,12.70149449]
[1732585022674,8.31289104,238.31,238.25,12.70149449]
[1732585022880,5.79519104,238.3,238.25,12.70149449]
[1732585023576,23.776884,238.29,238.25,12.70149449]
[1732585024480,2.518,238.28,238.25,12.70149449]
[1732585024787,20.0,238.24,238.12,6.3534]
[1732585024985,29.57207504,238.23,238.16,12.70149449]
[1732585025781,29.57207504,238.23,238.18,12.70149449]
[1732585025980,29.57207504,238.23,238.2,12.70149449]
[1732585026292,109.28649934,238.27,238.22,12.70149449]
[1732585026494,26.295084,238.26,238.22,12.70149449]
[1732585027173,20.0,238.23,238.2,12.70149449]
[1732585027382,36.47837849,238.22,238.12,6.3534]
[1732585027567,20.0,238.19,238.13,12.70149449]
[1732585028067,20.0,238.19,238.15,12.70149449]
[1732585028695,2.5191,238.18,238.15,12.70149449]
[1732585029681,23.776884,238.17,238.13,12.70149449]
[1732585030470,23.776884,238.17,238.11,12.70149449]
[1732585030777,2.5195,238.14,238.09,12.70149449]
[1732585030976,23.776884,238.13,238.07,12.70149449]
[1732585031179,23.776884,238.13,238.09,12.70149449]
[1732585031777,26.296284,238.15,238.09,12.70149449]
[1732585031977,23.776884,238.13,238.07,12.70149449]
[1732585032181,23.776884,238.13,238.09,12.70149449]
[1732585032491,23.776884,238.14,238.09,12.70149449]
[1732585032990,23.776884,238.1,238.05,12.70149449]
[1732585033991,23.776884,238.08,238.05,12.70149449]
[1732585034473,2.52,238.09,238.05,12.70149449]
[1732585035886,23.776884,238.08,238.05,12.70149449]
[1732585037377,23.776884,238.08,237.95,6.443]
[1732585037378,20.0,238.06,237.95,6.443]
[1732585037582,20.0,238.05,238.01,12.70149449]
[1732585037791,2.5212,237.98,237.85,4.2042]
[1732585037992,23.776884,237.97,237.93,12.70149449]
[1732585039291,23.776884,237.97,237.85,4.2042]
[1732585039292,20.0,238.01,237.95,12.70149449]
[1732585039497,2.5206,238.03,238.0,12.70149449]
[1732585039671,2.5206,238.03,238.02,12.70149449]
[1732585039992,99.80349934,238.08,238.02,12.70149449]
[1732585039993,2.5202,238.07,238.02,12.70149449]
[1732585040196,6.041,238.12,238.03,12.70149449]
[1732585040197,2.5201,238.09,238.03,12.70149449]
[1732585040378,12.70149449,238.07,237.99,12.70149449]
[1732585041695,43.776884,238.03,237.99,12.70149449]
[1732585041997,20.0,238.03,237.99,12.70149449]
[1732585042891,26.297184,238.06,238.01,12.70149449]
[1732585043103,2.5199,238.1,238.05,12.70149449]
[1732585043269,2.5199,238.1,237.96,12.70149449]
[1732585043270,2.5199,238.1,238.07,12.70149449]
[1732585043469,2.5196,238.13,238.07,12.70149449]
[1732585043699,2.5196,238.13,238.09,12.70149449]
[1732585044192,2.5196,238.13,238.07,12.70149449]
[1732585044378,20.0,238.12,238.07,12.70149449]
[1732585044774,23.776884,238.11,238.07,12.70149449]
[1732585044999,2.5199,238.1,238.07,12.70149449]
[1732585045203,2.5199,238.1,237.96,12.70149449]
[1732585045204,23.776884,238.11,238.09,12.70149449]
[1732585045398,15.4386,238.2,238.09,12.70149449]
[1732585045399,2.5193,238.16,238.09,12.70149449]
[1732585045578,2.5193,238.16,238.14,12.70149449]
[1732585046504,2.5188,238.2,238.14,12.70149449]
[1732585047875,22.5188,238.2,238.16,12.70149449]
[1732585049316,23.776884,238.19,238.14,12.70149449]
[1732585049800,20.0,238.16,238.1,12.70149449]
[1732585050004,23.776884,238.15,238.08,12.70149449]
[1732585051285,23.776884,238.13,238.1,12.70149449]
[1732585051806,23.776884,238.13,238.08,12.70149449]
[1732585052102,23.776884,238.13,238.06,12.70149449]
[1732585052280,36.47837849,238.13,238.06,12.70149449]
[1732585052478,20.0,238.1,238.06,12.70149449]
[1732585052702,23.776884,238.09,238.02,12.70149449]
[1732585053389,23.776884,238.07,238.02,12.70149449]
[1732585054802,36.47837849,238.07,238.0,12.70149449]
[1732585055196,36.47837849,238.07,237.93,4.2027]
[1732585055197,23.776884,238.03,237.86,6.2467]
[1732585055403,23.776884,238.0,237.92,12.70149449]
[1732585055603,23.776884,237.96,237.94,12.70149449]
[1732585056285,23.776884,237.96,237.92,12.70149449]
[1732585056502,23.776884,237.96,237.94,12.70149449]
[1732585057406,26.298384,237.96,237.92,12.70149449]
[1732585060403,26.298384,237.96,237.9,12.70149449]
[1732585061418,26.298384,237.96,237.92,12.70149449]
[1732585061909,93.50299934,238.0,237.94,12.70149449]
[1732585062110,93.50299934,238.0,237.96,12.70149449]
[1732585062792,96.02399934,238.0,237.96,12.70149449]
[1732585063019,96.02399934,238.0,237.84,27.90679449]
[1732585063020,2.5208,238.02,237.98,12.70149449]
[1732585063197,2.5203,238.06,238.0,12.70149449]
[1732585064221,2.5203,238.06,238.04,12.70149449]
[1732585065013,2.5199,238.1,238.04,12.70149449]
[1732585065397,20.0,238.06,238.04,12.70149449]
[1732585065713,23.776884,238.07,238.02,12.70149449]
[1732585067297,2.5203,238.06,238.02,12.70149449]
[1732585067497,23.776884,238.05,238.02,12.70149449]
[1732585068716,2.5203,238.06,238.04,12.70149449]
[1732585069019,93.50299934,238.12,238.04,12.70149449]
[1732585069312,20.0,238.11,238.08,12.70149449]
[1732585070123,20.0,238.11,238.06,12.70149449]
[1732585070297,22.5199,238.1,238.06,12.70149449]
[1732585070996,93.50299934,238.15,238.06,12.70149449]
[1732585071202,2.5196,238.13,238.08,12.70149449]
[1732585071723,2.5196,238.13,238.06,12.70149449]
[1732585071908,2.5196,238.13,237.99,6.1199]
[1732585071909,2.5196,238.13,238.04,12.70149449]
[1732585072090,12.70149449,238.12,238.04,12.70149449]
[1732585072297,23.776884,238.1,238.04,12.70149449]
[1732585073209,23.776884,238.1,238.06,12.70149449]
[1732585073927,23.776884,238.1,238.04,12.70149449]
[1732585074425,20.0,238.08,238.04,12.70149449]
[1732585075301,2.5202,238.07,238.06,12.70149449]
[1732585075619,2.5202,238.07,238.04,12.70149449]
[1732585077426,23.776884,238.06,238.04,12.70149449]
[1732585077721,20.0,238.03,237.99,12.70149449]
[1732585078596,2.5207,238.02,237.99,12.70149449]
[1732585082500,23.776884,238.01,237.97,12.70149449]
[1732585082721,23.776884,238.01,237.95,12.70149449]
[1732585082905,32.599484,238.02,237.95,12.70149449]
[1732585084004,32.599484,238.02,237.97,12.70149449]
[1732585085422,20.0,237.99,237.95,12.70149449]
[1732585087021,2.5212,237.98,237.95,12.70149449]
[1732585088807,2.5212,237.98,237.97,12.70149449]
[1732585089005,23.776884,238.03,237.97,12.70149449]
[1732585089308,26.297484,238.03,237.97,12.70149449]
[1732585089824,23.776884,237.99,237.91,12.70149449]
[1732585090427,23.776884,237.95,237.91,12.70149449]
[1732585090927,23.776884,237.97,237.91,12.70149449]
[1732585091807,20.0,237.94,237.91,12.70149449]
[1732585092009,43.776884,237.93,237.89,12.70149449]
[1732585093433,2.5218,237.92,237.89,12.70149449]
[1732585093930,23.776884,237.86,237.79,12.70149449]
[1732585094138,20.0,237.81,237.73,15.863]
[1732585094311,23.776884,237.82,237.76,12.70149449]
[1732585094514,23.776884,237.82,237.77,12.70149449]
[1732585094715,93.50299934,237.89,237.81,12.70149449]
[1732585094716,106.20449383,237.89,237.81,12.70149449]
[1732585094920,23.776884,237.89,237.87,12.70149449]
[1732585095119,23.776884,237.91,237.87,12.70149449]
[1732585095716,23.776884,237.9,237.87,12.70149449]
[1732585095917,20.0,237.93,237.88,12.70149449]
[1732585096126,15.22299449,237.95,237.88,12.70149449]
[1732585096127,93.50299934,237.94,237.88,12.70149449]
[1732585096427,20.0,237.92,237.88,12.70149449]
[1732585097109,23.776884,237.91,237.86,12.70149449]
[1732585097323,20.0,237.88,237.84,12.70149449]
[1732585097632,26.299184,237.87,237.82,12.70149449]
[1732585100037,26.299184,237.87,237.8,12.70149449]
[1732585100214,39.00067849,237.87,237.8,12.70149449]
[1732585100812,39.00067849,237.87,237.77,15.863]
[1732585100813,26.299184,237.87,237.82,12.70149449]
[1732585101023,26.299184,237.87,237.84,12.70149449]
[1732585101430,2.5221,237.9,237.86,12.70149449]
[1732585101733,2.5219,237.92,237.88,12.70149449]
[1732585101915,2.5219,237.92,237.84,12.70149449]
[1732585101916,2.5219,237.92,237.9,12.70149449]
[1732585102117,2.5214,237.96,237.9,12.70149449]
[1732585102317,2.5214,237.96,237.93,12.70149449]
[1732585102635,19.00409449,238.0,237.93,12.70149449]
[1732585102636,2.5211,237.99,237.93,12.70149449]
[1732585102938,2.5211,237.99,237.91,12.70149449]
[1732585103537,12.70149449,237.98,237.91,12.70149449]
[1732585104437,20.0,237.95,237.89,12.70149449]
[1732585104742,8.8238,237.99,237.89,12.70149449]
[1732585104743,20.0,237.93,237.89,12.70149449]
[1732585105935,26.298684,237.92,237.87,12.70149449]
[1732585109130,26.298684,237.92,237.87,12.20149449]
[1732585109843,2.5217,237.94,237.87,12.20149449]
[1732585110046,2.5217,237.94,237.82,15.863]
[1732585110047,2.5217,237.94,237.89,12.70149449]
[1732585111421,2.5217,237.94,237.91,12.70149449]
[1732585112044,2.5217,237.94,237.89,12.70149449]
[1732585114149,23.776884,237.93,237.89,12.70149449]
[1732585114552,23.776884,237.95,237.91,12.70149449]
[1732585114850,134.5,237.99,237.84,12.70149449]
[1732585114851,23.776884,237.97,237.94,12.70149449]
[1732585115346,23.776884,237.97,237.92,12.70149449]
[1732585115728,19.00409449,238.0,237.92,12.70149449]
[1732585115729,2.5214,237.96,237.92,12.70149449]
[1732585116141,23.776884,237.95,237.9,12.70149449]
[1732585117929,26.298184,237.97,237.9,12.70149449]
[1732585119158,26.298184,237.97,237.92,12.70149449]
[1732585119350,26.298184,237.97,237.9,12.70149449]
[1732585122349,26.298184,237.97,237.91,8.14866449]
[1732585122655,26.298184,237.97,237.85,4.2043]
[1732585122656,20.0,237.94,237.85,4.2043]
[1732585122845,20.0,237.94,237.82,15.863]
[1732585122846,23.776884,237.88,237.82,15.863]
[1732585123032,23.776884,237.88,237.8,14.44226449]
[1732585123232,23.776884,237.88,237.84,8.14866449]
[1732585123439,23.776884,237.92,237.84,8.14866449]
[1732585123851,23.776884,237.92,237.8,21.0117]
[1732585124156,23.776884,237.92,237.88,8.14866449]
[1732585124367,23.776884,237.92,237.89,12.73423416]
[1732585124654,20.0,237.94,237.89,12.23423416]
[1732585125029,20.0,237.95,237.91,12.73423416]
[1732585125550,20.0,237.95,237.89,12.73423416]
[1732585126059,23.776884,237.94,237.89,12.73423416]
[1732585128060,26.298484,237.94,237.89,12.73423416]
[1732585128841,20.0,237.91,237.81,4.2048]
[1732585129049,26.298484,237.94,237.81,4.2048]
[1732585129050,20.0,237.87,237.84,12.73423416]
[1732585129959,20.0,237.93,237.86,12.73423416]
[1732585130261,23.776884,237.92,237.9,12.73423416]
[1732585130946,26.298684,237.92,237.8,4.2052]
[1732585131266,26.298684,237.92,237.87,12.73423416]
[1732585132142,26.298684,237.92,237.85,12.73423416]
[1732585133666,20.0,237.89,237.85,12.73423416]
[1732585133841,23.776884,237.88,237.85,12.73423416]
[1732585134555,23.776884,237.88,237.83,12.73423416]
[1732585134755,23.776884,237.88,237.7,11.6044284]
[1732585134756,23.776884,237.84,237.81,12.73423416]
[1732585135569,26.299584,237.84,237.81,12.73423416]
[1732585138674,26.299584,237.84,237.7,10.5174]
[1732585138675,23.776884,237.84,237.83,12.73423416]
[1732585138882,20.0,237.85,237.83,12.73423416]
[1732585139044,43.776884,237.85,237.84,12.73423416]
[1732585139244,43.776884,237.85,237.7,10.5174]
[1732585139245,43.776884,237.85,237.82,12.73423416]
[1732585139553,23.776884,237.84,237.82,12.73423416]
[1732585139945,26.299584,237.84,237.82,12.73423416]
[1732585140168,23.776884,237.84,237.82,12.73423416]
[1732585142773,20.0,237.85,237.82,12.73423416]
[1732585142956,23.776884,237.87,237.84,12.73423416]
[1732585143155,134.5,237.89,237.86,12.73423416]
[1732585143356,2.5215,237.95,237.88,12.73423416]
[1732585143671,2.5215,237.95,237.92,12.73423416]
[1732585143844,2.5215,237.95,237.9,12.73423416]
[1732585144246,2.5215,237.95,237.8,22.2998]
[1732585144247,142.64964443,237.97,237.89,8.14964443]
[1732585144452,23.776884,237.95,237.89,8.14964443]
[1732585144780,20.0,237.92,237.89,8.14964443]
[1732585144955,23.776884,237.91,237.89,8.14964443]
[1732585147977,23.776884,237.91,237.8,22.2998]
[1732585148156,23.776884,237.89,237.81,4.2049]
[1732585148357,20.0,237.93,237.88,8.14964443]
[1732585148681,23.776884,237.92,237.91,8.14964443]
[1732585149553,23.776884,237.92,237.76,15.6995]
[1732585149757,43.776884,237.88,237.84,8.14964443]
[1732585150881,23.776884,237.86,237.84,8.14964443]
[1732585152082,26.299184,237.87,237.84,8.14964443]
[1732585152483,134.5,237.9,237.86,8.14964443]
[1732585152780,6.3036,237.96,237.77,4.2057]
[1732585152781,2.5214,237.96,237.89,8.14964443]
[1732585153083,137.0214,237.96,237.92,8.14964443]
[1732585153273,137.0214,237.96,237.84,32.59857772]